lending/lending_fUSD_20240830
["ID","MTS","AMOUNT","RATE_DAILY","PERIOD"]
[336628953,1724981446367,-300.0,0.00011,2]
[336628955,1724981446378,-19467.58779765,0.00011,2]
[336628957,1724981446389,-66753.39703524,0.00011,2]
[336628959,1724981446400,-23076.45085748,0.00011,2]
[336628961,1724981446411,-7995.2437069,0.00011,2]
[336628963,1724981446423,-13109.52489308,0.00011,2]
[336628966,1724981446434,-1778.39977158,0.00011,2]
[336628968,1724981446447,-7767.81612531,0.00011,2]
[336628973,1724981446483,-11067.42674182,0.00011,2]
[336628975,1724981446495,-8129.68186895,0.00011,2]
[336629347,1724981464990,151.07321342,0.00010792,2]
[336629348,1724981473113,150.0,0.00010749,2]
[336629349,1724981474120,1500.0,0.00010785,2]
[336629350,1724981474148,150.0,0.00010809,2]
[336629351,1724981474176,150.0,0.00010845,2]
[336629352,1724981474486,429376.74035931,0.000108,2]
[336629353,1724981481793,150.0,0.00010728,2]
[336629354,1724981485547,4537.47623812,0.000109,2]
[336629355,1724981487640,177.95,0.00010916,2]
[336629356,1724981491482,245.35,0.00010959,2]
[336629357,1724981502071,204.46,0.00010959,2]
[336629358,1724981512618,170.38,0.00010959,2]
[336629359,1724981516852,2853.43926896,0.000109,2]
[336629360,1724981521485,223.17242014,0.0001089,2]
[336629361,1724981523297,851.93,0.00010959,2]
[336629363,1724981599659,497.96829585,0.000109,2]
[336629364,1724981604169,152.63,0.00010959,2]
[336629365,1724981625177,184.09644706,0.000109,2]
[336629366,1724981664163,221.04327,0.0001094,2]
[336629367,1724981664464,287.49737,0.0001095,2]
[336629368,1724981677342,1500.0,0.00010859,2]
[336629369,1724981691607,188.57720882,0.000109,2]
[336629370,1724981728879,944.33117887,0.000109,2]
[336629371,1724981768694,6678.14001971,0.000109,2]
[336629372,1724981807166,659.60913493,0.000109,2]
[336629373,1724981969805,221.04326,0.000109,2]
[336629374,1724981969948,221.04327,0.0001094,2]
[336629375,1724981971148,287.49737,0.0001094,2]
[336629376,1724981984174,322.67497958,0.000109,2]
[336629377,1724982078976,3108.0659,0.000109,2]
[336629378,1724982097527,1500.0,0.00010757,2]
[336629379,1724982097588,1500.0,0.00010887,2]
[336629380,1724982097620,1277.62377367,0.00010881,2]
[336629381,1724982159344,792.0547,0.000109,2]
[336629382,1724982207642,180.09844388,0.000109,2]
[336629383,1724982208910,6010.32601773,0.000109,2]
[336629384,1724982213673,500.0,0.00010813,2]
[336629385,1724982217283,200.0,0.00010959,2]
[336629386,1724982217692,200.0,0.00010959,2]
[336629387,1724982218114,200.0,0.00010959,2]
[336629389,1724982264503,8086.7914,0.000109,2]
[336629390,1724982277144,909.4839,0.000109,2]
[336629391,1724982303837,150.0,0.00010959,2]
[336629392,1724982359669,150.0,0.00010812,2]
[336629393,1724982359707,150.52175457,0.0001083,2]
[336629394,1724982361177,326.72258,0.0001089,2]
[336629395,1724982388186,587.2596,0.000109,2]
[336629396,1724982446044,1882.2778,0.000109,2]
[336629397,1724982452145,451.3554,0.000109,2]
[336629398,1724982481776,1060.5403,0.000109,2]
[336629399,1724982499267,79029.0461,0.000109,2]
[336629402,1724982605126,500.0,0.00010945,2]
[336629403,1724982605510,500.0,0.00010945,2]
[336629404,1724982605834,500.0,0.00010945,2]
[336629405,1724982606566,500.0,0.00010945,2]
[336629406,1724982606919,500.0,0.00010945,2]
[336629407,1724982607285,385.6059,0.00010945,2]
[336629408,1724982614264,500.0,0.00010945,2]
[336629409,1724982614930,500.0,0.00010945,2]
[336629410,1724982614968,500.0,0.00010945,2]
[336629411,1724982615649,500.0,0.00010945,2]
[336629412,1724982615976,500.0,0.00010945,2]
[336629413,1724982616621,500.0,0.00010945,2]
[336629414,1724982616702,500.0,0.00010945,2]
[336629415,1724982616998,500.0,0.00010945,2]
[336629416,1724982617331,506.5442,0.00010945,2]
[336629418,1724982632280,-300.0,0.00010994,2]
[336629419,1724982632290,-733.09125361,0.00010995,2]
[336629420,1724982632301,-4771.63845327,0.00010995,2]
[336629421,1724982632312,-37122.96796822,0.00010995,2]
[336629422,1724982632322,-219.15287057,0.00010997,2]
[336629423,1724982632331,-150.0,0.00010998,2]
[336629424,1724982632341,-687.56554537,0.00010999,2]
[336629425,1724982632350,-500.0,0.00010999,2]
[336629426,1724982632359,-500.0,0.00010999,2]
[336629427,1724982632369,-500.0,0.00010999,2]
[336629428,1724982632378,-500.0,0.00010999,2]
[336629429,1724982632388,-500.0,0.00010999,2]
[336629430,1724982632397,-282.65458594,0.00010999,2]
[336629431,1724982632406,-509.60052378,0.00010999,2]
[336629432,1724982632416,-501.57061881,0.00010999,2]
[336629433,1724982632426,-1358.0,0.00011,2]
[336629434,1724982632437,-565725.48788761,0.00011,2]
[336629435,1724982632450,-1003.2257048,0.00011,2]
[336629436,1724982632462,-297.04785907,0.00011,2]
[336629439,1724982632486,-790.15908962,0.00011,2]
[336629440,1724982632497,-283.8100001,0.00011,2]
[336629441,1724982632509,-745.31368766,0.00011,2]
[336629442,1724982632520,-844.63596783,0.00011,2]
[336629443,1724982638477,-343.78277268,0.00010999,2]
[336629444,1724982638486,-179.17677998,0.00011,2]
[336629445,1724982638498,-1005.11250042,0.00011,2]
[336629446,1724982638509,-67248.17413709,0.00011,2]
[336629447,1724982638520,-703.20536157,0.00011,2]
[336629448,1724982638531,-132540.33113787,0.00011,2]
[336629449,1724982638542,-1507.57772365,0.00011,2]
[336629450,1724982638553,-2547200.70477039,0.00011,2]
[336629451,1724982638565,-31381.03398779,0.00011,2]
[336629452,1724982638576,-20046.88647575,0.00011,2]
[336629453,1724982638587,-453.0,0.00011,2]
[336629454,1724982638598,-435.35854429,0.00011,2]
[336629455,1724982638688,-664.7658,0.00011,2]
[336629456,1724982638700,-10231.82958382,0.00011,2]
[336629457,1724982638711,-687.5455881,0.00011,2]
[336629609,1724982640383,-31971.56757775,0.00011,2]
[336629611,1724982640395,-3470.13415581,0.00011,2]
[336629613,1724982640406,-337.00867727,0.00011,2]
[336629634,1724982640603,-247387.26683572,0.00011,2]
[336629650,1724982640760,-1953.20382137,0.00011,2]
[336629653,1724982640772,-890.835,0.00011,2]
[336629900,1724982643350,-10034.08847094,0.00011,2]
[336629920,1724982643510,-1241.63380344,0.00011,2]
[336629922,1724982643521,-1321.69127506,0.00011,2]
[336629924,1724982643533,-289.10000002,0.00011,2]
[336629950,1724982643796,-284.9999999,0.00011,2]
[336630281,1724982647063,-343.78277268,0.00010999,2]
[336630283,1724982647073,-6204.99152804,0.00011,2]
[336630285,1724982647083,-4239.50327642,0.00011,2]
[336630287,1724982647095,-617.45933672,0.00011,2]
[336630289,1724982647108,-8840.8761939,0.00011,2]
[336630291,1724982647119,-387.7317709,0.00011,2]
[336630294,1724982647133,-321.8,0.00011,2]
[336630296,1724982647144,-29189.1003933,0.00011,2]
[336630471,1724982650179,5409.29341593,0.000109,2]
[336630472,1724982672983,1500.0,0.00010795,2]
[336630473,1724982673195,1500.0,0.00010742,2]
[336630474,1724982685307,1395.05120459,0.000108,2]
[336630475,1724982696018,1500.0,0.00010767,2]
[336630476,1724982709275,180.58922,0.0001089,2]
[336630477,1724982710318,798.35468446,0.000109,2]
[336630478,1724982737484,10492.1624,0.000109,2]
[336630479,1724982796561,1031.193146,0.000109,2]
[336630480,1724982797730,177.94787199,0.000109,2]
[336630481,1724982813702,200.0,0.00010959,2]
[336630482,1724982814291,200.0,0.00010959,2]
[336630483,1724982815004,349.67204084,0.000109,2]
[336630485,1724982820343,169.58,0.00010959,2]
[336630486,1724982840190,26576.0444,0.000109,2]
[336630487,1724982880826,16858.8566,0.000109,2]
[336630488,1724982886853,5534.351,0.000109,2]
[336630489,1724982887210,188.51932041,0.000109,2]
[336630490,1724982945822,177.94787198,0.000109,2]
[336630491,1724982973256,349.67204079,0.000109,2]
[336630492,1724983052569,224.545,0.00010899,2]
[336630493,1724983057432,355.86065,0.0001089,2]
[336630494,1724983090488,4935.66264164,0.000109,2]
[336630495,1724983107845,3378.6122,0.000109,2]
[336630496,1724983118942,349.67204079,0.000109,2]
[336630497,1724983208276,2963.9493,0.000109,2]
[336630498,1724983231897,152.71955967,0.000109,2]
[336630499,1724983257725,349.67204079,0.000109,2]
[336630500,1724983297327,1500.0,0.00010761,2]
[336630501,1724983297389,451.42295379,0.00010839,2]
[336630502,1724983386682,349.67204079,0.000109,2]
[336630503,1724983427013,150.49102,0.0001089,2]
[336630504,1724983460470,1291.0125,0.000109,2]
[336630505,1724983484711,184.5354131,0.000109,2]
[336630506,1724983502589,349.67204079,0.000109,2]
[336630507,1724983531760,4442.09637753,0.000109,2]
[336630509,1724983546608,203.01,0.00010959,2]
[336630510,1724983577770,354.21853497,0.000109,2]
[336630511,1724983676062,200.0,0.00024,120]
[336630526,1724983832458,296.55055,0.0001089,2]
[336630532,1724983832578,-355.0,0.0001099,2]
[336630533,1724983832588,-167.09,0.0001099,2]
[336630534,1724983832597,-150.0,0.00010999,2]
[336630535,1724983832607,-500.0,0.00010999,2]
[336630536,1724983832616,-500.0,0.00010999,2]
[336630537,1724983832626,-500.0,0.00010999,2]
[336630538,1724983832636,-500.0,0.00010999,2]
[336630539,1724983832646,-500.0,0.00010999,2]
[336630540,1724983832656,-500.0,0.00010999,2]
[336630541,1724983832665,-480.11476905,0.00010999,2]
[336630542,1724983832675,-500.0,0.00010999,2]
[336630543,1724983832685,-550.2239226,0.00010999,2]
[336630544,1724983832694,-1285.0,0.00011,2]
[336630545,1724983832703,-473430.50736666,0.00011,2]
[336630546,1724983832714,-4887.80492852,0.00011,2]
[336630547,1724983832725,-6558.09753364,0.00011,2]
[336630548,1724983832735,-13563.42085711,0.00011,2]
[336630549,1724983832748,-976.47953325,0.00011,2]
[336630550,1724983832759,-298.3,0.00011,2]
[336630551,1724983832771,-1865.69249295,0.00011,2]
[336630553,1724983832783,-751.39001507,0.00011,2]
[336630555,1724983832795,-555.90330277,0.00011,2]
[336630556,1724983832808,-769.41862492,0.00011,2]
[336630557,1724983832830,-1926.93036806,0.00011,2]
[336630558,1724983832843,-327.85685687,0.00011,2]
[336630559,1724983832855,-5744.0807851,0.00011,2]
[336630560,1724983832867,-503.88900716,0.00011,2]
[336630561,1724983832878,-341.48088377,0.00011,2]
[336630562,1724983832888,-2481.20419989,0.00011,2]
[336630563,1724983832899,-2637.74911535,0.00011,2]
[336630564,1724983832938,-206593.42763305,0.00011,2]
[336630566,1724983838450,-1079.19611686,0.00011,2]
[336630567,1724983838461,-1107.2408442,0.00011,2]
[336630568,1724983838476,-19177.27197511,0.00011,2]
[336630577,1724983838618,-2388.94041669,0.00011,2]
[336630578,1724983838629,-9247.40127066,0.00011,2]
[336630579,1724983838641,-1632.9959002,0.00011,2]
[336630580,1724983838652,-965.47893929,0.00011,2]
[336630581,1724983838784,-125671.50416776,0.00011,2]
[336630582,1724983838796,-1970.96182548,0.00011,2]
[336630583,1724983838807,-1002.00817452,0.00011,2]
[336630584,1724983838818,-1999.7712,0.00011,2]
[336630585,1724983838829,-14005.94135658,0.00011,2]
[336630586,1724983838841,-1919.49092263,0.00011,2]
[336630587,1724983838952,-1698.03970922,0.00011,2]
[336630755,1724983840736,-225716.78682324,0.00011,2]
[336630757,1724983840749,-56558.54902761,0.00011,2]
[336630759,1724983840760,-5198.16634652,0.00011,2]
[336630761,1724983840771,-760.11591725,0.00011,2]
[336630764,1724983840783,-401.71205352,0.00011,2]
[336630766,1724983840795,-3333.99104239,0.00011,2]
[336630779,1724983840912,-652.90604012,0.00011,2]
[336630782,1724983840924,-343.5074473,0.00011,2]
[336630784,1724983840935,-298.93795914,0.00011,2]
[336631037,1724983843656,-3313.60911296,0.00011,2]
[336631040,1724983843668,-526.02,0.00011,2]
[336631042,1724983843680,-16887.30777597,0.00011,2]
[336631057,1724983843823,-4342.0000002,0.00011,2]
[336631059,1724983843834,-10504.11065128,0.00011,2]
[336631060,1724983843844,-1161.0,0.00011,2]
[336631062,1724983843854,-348.38934872,0.00011,2]
[336631065,1724983843866,-24546.346537,0.00011,2]
[336631067,1724983843877,-71783.70110887,0.00011,2]
[336631069,1724983843888,-6605.21501815,0.00011,2]
[336631306,1724983846411,-1771.28239606,0.00011,2]
[336631308,1724983846423,-488.47300864,0.00011,2]
[336631338,1724983846604,-1543.58513441,0.00011,2]
[336631342,1724983846616,-35191.9034622,0.00011,2]
[336631346,1724983846627,-35179.26100874,0.00011,2]
[336631370,1724983846800,-2841.38118564,0.00011,2]
[336632356,1724983869956,255.0,0.00010899,2]
[336632357,1724983909824,1000.0,0.000109,2]
[336632358,1724983936458,155.97369366,0.000109,2]
[336632359,1724983972202,4839.34207974,0.000109,2]
[336632360,1724983974856,2465.62392805,0.00010899,2]
[336632361,1724984017855,200.0,0.00010959,2]
[336632362,1724984022560,443.0,0.00024,120]
[336632363,1724984074540,1000.0,0.000109,2]
[336632365,1724984080039,166.28,0.00010959,2]
[336632366,1724984083381,155.97369365,0.000109,2]
[336632367,1724984104312,297.7529,0.000109,2]
[336632368,1724984165061,1000.0,0.000109,2]
[336632369,1724984167238,2953.3969,0.000109,2]
[336632370,1724984209816,1626.0,0.000109,2]
[336632371,1724984223152,247.12545,0.0001089,2]
[336632372,1724984325230,163.926,0.000109,2]
[336632373,1724984386861,906.2,0.0001,2]
[336632374,1724984414396,4355.40787173,0.000109,2]
[336632375,1724984497350,1310.29541612,0.00010835,2]
[336632376,1724984638967,205.93788,0.0001089,2]
[336632377,1724984689643,5847.0,0.000108,2]
[336632379,1724984723474,152.63,0.00010959,2]
[336632380,1724984734405,229.04710584,0.0001,2]
[336632381,1724984759854,184.5354131,0.000109,2]
[336632382,1724984761179,160.64416732,9e-05,2]
[336632383,1724984782049,168.69,0.00010134,2]
[336632384,1724984814234,4220.91232768,0.000107,15]
[336632385,1724984857096,3919.86708453,0.000109,2]
[336632386,1724984870627,399.31521589,0.000109,2]
[336632387,1724984878815,4782.34645774,0.0001,2]
[336632389,1724984918419,329.39770913,0.0002,60]
[336632391,1724984960560,1008.0,0.000109,2]
[336632392,1724984974534,-291.35348115,0.00010963,2]
[336632393,1724984974567,-255.0,0.00010963,2]
[336632395,1724984974600,-2360.9636644,0.0001099,2]
[336632398,1724984974640,-2907.31714555,0.0001099,2]
[336632401,1724984974675,-2907.31714555,0.0001099,2]
[336632403,1724984974710,-2705.19141936,0.0001099,2]
[336632406,1724984996749,893.121166,0.00010935,2]
[336632407,1724985030431,171.6149,0.0001089,2]
[336632418,1724985031703,-416.68171779,0.0001099,2]
[336632435,1724985037827,-3889.80004675,0.0001099,2]
[336632436,1724985037838,-196.52262912,0.00010994,2]
[336632437,1724985037848,-2356.00392412,0.00010998,2]
[336632438,1724985037861,-1010.0571338,0.00010998,2]
[336632439,1724985037872,-528.37455136,0.00010999,2]
[336632440,1724985037882,-150.0,0.00010999,2]
[336632441,1724985037896,-300.0,0.00010999,2]
[336632442,1724985037907,-526.57085464,0.00010999,2]
[336632443,1724985037917,-164.45719656,0.00010999,2]
[336632444,1724985037928,-1046.0,0.00011,2]
[336632445,1724985037938,-116502.99830562,0.00011,2]
[336632446,1724985037950,-1768.43667,0.00011,2]
[336632447,1724985037963,-1000.19973099,0.00011,2]
[336632448,1724985037976,-3048.91164779,0.00011,2]
[336632449,1724985037988,-33278.88494011,0.00011,2]
[336632532,1724985038904,-774.37085633,0.00011,2]
[336632538,1724985038950,-3146.7938,0.00011,2]
[336632542,1724985038985,-2944.34240302,0.00011,2]
[336632544,1724985038998,-9101.3781579,0.00011,2]
[336632546,1724985039010,-8693.51986952,0.00011,2]
[336632548,1724985039021,-1381.24087936,0.00011,2]
[336632551,1724985039041,-3186.9288903,0.00011,2]
[336632553,1724985039052,-884.28010879,0.00011,2]
[336632555,1724985039063,-63520.48971864,0.00011,2]
[336632644,1724985039897,-4592.72827989,0.00011,2]
[336632646,1724985039908,-4301.99329735,0.00011,2]
[336632648,1724985039919,-1079.96109176,0.00011,2]
[336632651,1724985039931,-3017.34446,0.00011,2]
[336632653,1724985039943,-128254.7634087,0.00011,2]
[336632654,1724985039952,-6015122.03445358,0.00011,2]
[336632662,1724985040016,-312.91,0.00011,2]
[336632677,1724985040146,-605.06484465,0.00011,2]
[336632928,1724985042743,-821.406033,0.00011,2]
[336632930,1724985042755,-290.57000001,0.00011,2]
[336632932,1724985042766,-757.85641077,0.00011,2]
[336632935,1724985042777,-367.69336575,0.00011,2]
[336632952,1724985042927,-6400.89541296,0.00011,2]
[336632954,1724985042938,-67020.07380513,0.00011,2]
[336632956,1724985042949,-4526.756931,0.00011,2]
[336632958,1724985042960,-1128.06641355,0.00011,2]
[336632960,1724985042971,-912.45,0.00011,2]
[336632963,1724985042983,-3067.36856786,0.00011,2]
[336632965,1724985042994,-210491.55392498,0.00011,2]
[336632967,1724985043006,-1129.18703531,0.00011,2]
[336633006,1724985043413,-384.59560439,0.00011,2]
[336633008,1724985043424,-1149.07228572,0.00011,2]
[336633010,1724985043436,-2057.25000025,0.00011,2]
[336633012,1724985043447,-8632.87567252,0.00011,2]
[336633014,1724985043459,-918.3487726,0.00011,2]
[336633016,1724985043470,-1732.275,0.00011,2]
[336633018,1724985043482,-503.19150413,0.00011,2]
[336633020,1724985043494,-11367.3242289,0.00011,2]
[336633022,1724985043505,-7248.16469862,0.00011,2]
[336633024,1724985043516,-1164.90682513,0.00011,2]
[336633026,1724985043530,-841.5247125,0.00011,2]
[336633028,1724985043542,-567.63859501,0.00011,2]
[336633030,1724985043553,-925.48432631,0.00011,2]
[336633032,1724985043565,-1559.45168708,0.00011,2]
[336633034,1724985043576,-273.88727203,0.00011,2]
[336633036,1724985043587,-6785.62985113,0.00011,2]
[336633038,1724985043600,-382.12258582,0.00011,2]
[336633040,1724985043611,-361.6920653,0.00011,2]
[336633042,1724985043622,-369.12270208,0.00011,2]
[336633044,1724985043633,-814.55264413,0.00011,2]
[336633293,1724985046276,-277.38,0.00011,2]
[336633295,1724985046287,-631.37538617,0.00011,2]
[336633297,1724985046298,-361.43277495,0.00011,2]
[336633299,1724985046309,-1670.60854256,0.00011,2]
[336633301,1724985046320,-3407.63288819,0.00011,2]
[336633303,1724985046332,-1494.82037085,0.00011,2]
[336633306,1724985046343,-450.0,0.00011,2]
[336633308,1724985046354,-898.99522388,0.00011,2]
[336633310,1724985046365,-11282.35319939,0.00011,2]
[336633312,1724985046376,-2886.749998,0.00011,2]
[336633314,1724985046387,-283.51720375,0.00011,2]
[336633316,1724985046398,-2009.13156047,0.00011,2]
[336633318,1724985046413,-1083.74215153,0.00011,2]
[336633321,1724985046423,-2127.62018939,0.00011,2]
[336633323,1724985046434,-900.09,0.00011,2]
[336633325,1724985046445,-667.72574551,0.00011,2]
[336633327,1724985046456,-2654.94895016,0.00011,2]
[336633329,1724985046467,-718.1047832,0.00011,2]
[336633331,1724985046479,-37122.81021163,0.00011,2]
[336633333,1724985046490,-1346.35809449,0.00011,2]
[336633335,1724985046502,-8027.63642451,0.00011,2]
[336633338,1724985046514,-356.88365472,0.00011,2]
[336633340,1724985046531,-416.5696332,0.00011,2]
[336633342,1724985046543,-559.19999998,0.00011,2]
[336633344,1724985046554,-46653.34626189,0.00011,2]
[336633346,1724985046565,-8968.93143564,0.00011,2]
[336633348,1724985046574,-12858.53415237,0.00011,2]
[336633351,1724985046585,-1022.70162,0.00011,2]
[336633353,1724985046596,-1222.58142477,0.00011,2]
[336633355,1724985046607,-310.81261449,0.00011,2]
[336633357,1724985046619,-5966.55757461,0.00011,2]
[336633359,1724985046630,-988.93396234,0.00011,2]
[336633362,1724985046640,-7806.3,0.00011,2]
[336633364,1724985046651,-418.84953567,0.00011,2]
[336634047,1724985068151,2000.0,0.00012211,30]
[336634048,1724985113984,2016.586172,0.000108,2]
[336634049,1724985114111,850.169,0.000109,2]
[336634050,1724985200338,215.69,0.00010959,2]
[336634051,1724985270046,703.0254,0.000109,2]
[336634052,1724985286722,463.09738888,0.00010961,3]
[336634053,1724985299205,3527.88037614,0.000109,2]
[336634054,1724985380588,168.69,0.00010302,2]
[336634055,1724985418455,1130.0,0.000109,4]
[336634057,1724985540708,2973.5535,0.000109,2]
[336634058,1724985592576,268.4216,0.0001089,2]
[336634059,1724985699817,2000.0,0.00012211,30]
[336634061,1724985718504,169.58,0.00010959,2]
[336634062,1724985739504,3175.09233849,0.00010899,2]
[336634063,1724985928860,168.69,0.00010149,2]
[336634064,1724986024978,184.5354131,0.000109,2]
[336634065,1724986179835,2857.58310465,0.00010899,2]
[336634069,1724986195747,-335.11773299,0.00010997,2]
[336634072,1724986195775,-500.0,0.00010997,2]
[336634074,1724986195805,-587.84278679,0.00010997,2]
[336634078,1724986196188,-150.0,0.00010997,2]
[336634079,1724986196216,-900.23719771,0.00010997,2]
[336634080,1724986196247,-662.66228518,0.00010998,2]
[336634081,1724986196280,-3135.86000267,0.00010998,2]
[336634082,1724986196313,-2452.4511219,0.00010998,2]
[336634083,1724986196345,-3135.86000267,0.00010998,2]
[336634084,1724986217364,984.1,0.00010953,2]
[336634085,1724986221112,5177.31271826,0.00010899,2]
[336634087,1724986231900,-1283.39985363,0.00010998,2]
[336634088,1724986231915,-716.18874666,0.00010998,2]
[336634089,1724986231927,-4458.95684898,0.00010998,2]
[336634090,1724986231941,-479.0603353,0.00010998,2]
[336634091,1724986231955,-619.14994573,0.00010998,2]
[336634092,1724986231967,-3439.28301953,0.00010998,2]
[336634093,1724986231979,-2213.34493257,0.00010998,2]
[336634094,1724986231992,-956.77237349,0.00010998,2]
[336634095,1724986232004,-648.12882621,0.00010998,2]
[336634096,1724986232015,-505.38615579,0.00010998,2]
[336634097,1724986232027,-1450.0,0.00010998,2]
[336634098,1724986232103,-825.54249811,0.00010998,2]
[336634099,1724986232115,-191531.04471201,0.00010998,2]
[336634100,1724986232126,-8681.81578278,0.00010998,2]
[336634101,1724986232137,-320.66312088,0.00010998,2]
[336634102,1724986232148,-1688.47306488,0.00010998,2]
[336634103,1724986232160,-6636.11737844,0.00010998,2]
[336634104,1724986232171,-8971.18423279,0.00010998,2]
[336634105,1724986232183,-10371.38293521,0.00010998,2]
[336634106,1724986232194,-1625.54718631,0.00010998,2]
[336634107,1724986232206,-397.7418011,0.00010998,2]
[336634108,1724986232218,-1029.07753147,0.00010998,2]
[336634109,1724986232229,-2666.29867666,0.00010998,2]
[336634110,1724986232241,-904.08234998,0.00010998,2]
[336634111,1724986232251,-51600.0,0.00010998,2]
[336634112,1724986232263,-528.39973584,0.00010998,2]
[336634113,1724986232274,-49463.70321235,0.00010998,2]
[336634114,1724986232286,-310.68666681,0.00010998,2]
[336634115,1724986232299,-465.65120639,0.00010998,2]
[336634119,1724986238289,-2756.36521699,0.00010998,2]
[336634120,1724986238300,-65326.94652797,0.00010998,2]
[336634121,1724986238312,-288.5754682,0.00010998,2]
[336634122,1724986238322,-2076.34305428,0.00010998,2]
[336634123,1724986238333,-4204.82141487,0.00010998,2]
[336634124,1724986238344,-1922.85212128,0.00010998,2]
[336634125,1724986238355,-1920.89905454,0.00010998,2]
[336634126,1724986238366,-394.14575585,0.00010998,2]
[336634127,1724986238377,-2841.5102928,0.00010998,2]
[336634128,1724986238389,-914.18324626,0.00010998,2]
[336634129,1724986238400,-277241.74612344,0.00010998,2]
[336634130,1724986238411,-2894.2789726,0.00010998,2]
[336634131,1724986238423,-999.9592,0.00010998,2]
[336634132,1724986238434,-2939.34453431,0.00010998,2]
[336634133,1724986238445,-1363.28313491,0.00010998,2]
[336634134,1724986238468,-5686.33463656,0.00010998,2]
[336634270,1724986239896,-1608.91586877,0.00010998,2]
[336634272,1724986239911,-1575.74759375,0.00010998,2]
[336634274,1724986239922,-3431.58509352,0.00010998,2]
[336634277,1724986239933,-27241.57039901,0.00010998,2]
[336634279,1724986239944,-576.99,0.00010998,2]
[336634296,1724986240105,-27619.71308743,0.00010998,2]
[336634298,1724986240116,-3300.0,0.00010999,4]
[336634300,1724986240126,-3300.0,0.00010999,4]
[336634302,1724986240136,-7500.0,0.00010999,4]
[336634304,1724986240145,-7500.0,0.00010999,4]
[336634306,1724986240155,-7500.0,0.00010999,4]
[336634308,1724986240164,-500.0,0.00010999,2]
[336634310,1724986240174,-990.0,0.00011,2]
[336634311,1724986240183,-14654.26533121,0.00011,2]
[336634313,1724986240194,-2995.07687358,0.00011,2]
[336634315,1724986240206,-109874.62625147,0.00011,2]
[336634317,1724986240215,-2565733.83456426,0.00011,2]
[336634319,1724986240225,-152769.94271984,0.00011,2]
[336634321,1724986240235,-8708.35166844,0.00011,2]
[336634327,1724986240303,-2133.0394313,0.00011,2]
[336634329,1724986240315,-3944.30377442,0.00011,2]
[336634589,1724986243116,-747.85523931,0.00011,2]
[336634591,1724986243127,-528.85885242,0.00011,2]
[336634593,1724986243138,-1445.11600172,0.00011,2]
[336634595,1724986243149,-1064.79440349,0.00011,2]
[336634597,1724986243160,-580.5241446,0.00011,2]
[336634611,1724986243297,-5902.18596249,0.00011,2]
[336634873,1724986245971,-371.88291753,0.00011,2]
[336634876,1724986245985,-1324.8,0.00011,2]
[336634878,1724986245999,-611.967,0.00011,2]
[336634880,1724986246011,-298.66236919,0.00011,2]
[336634882,1724986246024,-957.52,0.00011,2]
[336634904,1724986246249,-344.849717,0.00011,2]
[336634907,1724986246267,-25773.32341151,0.00011,2]
[336634909,1724986246281,-335025.25171471,0.00011,2]
[336634911,1724986246294,-1011.21309157,0.00011,2]
[336634914,1724986246307,-14746.34508337,0.00011,2]
[336635121,1724986314963,800.2358121,0.000108,2]
[336635123,1724986410377,250.0,0.0001,2]
[336635124,1724986414678,500.0,0.00010714,2]
[336635125,1724986419120,200.0,0.00010959,2]
[336635126,1724986436716,168.69,9.918e-05,2]
[336635140,1724986571513,746.3636,0.000109,2]
[336635142,1724986576273,1000.0,0.000109,2]
[336635143,1724986606680,260.3744,0.000109,2]